bitfinex/quotes_SOLUSD_20240616
["timestamp","ask_amount","ask_price","bid_price","bid_amount"]
[1718578850647,13.1259479,150.66,150.63,2.4562]
[1718578850855,13.1259479,150.66,150.6,4.9135]
[1718578850856,2.4564,150.63,150.6,4.9135]
[1718578851173,2.4564,150.63,150.59,22.1125]
[1718578851174,2.4565,150.62,150.59,22.1125]
[1718578851444,22.1071,150.63,150.6,2.4567]
[1718578851630,7.3691,150.63,150.6,2.4567]
[1718578851834,2.4562,150.64,150.61,14.7396]
[1718578852125,2.4562,150.64,150.61,2.4565]
[1718578852343,2.4562,150.64,150.61,14.7398]
[1718578852655,2.4562,150.64,150.61,7.3698]
[1718578852823,62.3737,150.65,150.62,2.4564]
[1718578853032,50.0935,150.65,150.62,7.3694]
[1718578853264,20.0,150.65,150.62,17.1951]
[1718578853421,22.456,150.65,150.62,24.5643]
[1718578853627,27.368,150.65,150.62,7.3692]
[1718578853828,20.0,150.65,150.63,2.4563]
[1718578854243,20.0,150.65,150.63,7.3689]
[1718578854756,28.2142479,150.66,150.63,2.4563]
[1718578854938,8.2142479,150.66,150.63,7.3687]
[1718578855137,3.3025479,150.66,150.63,7.3687]
[1718578855334,8.2142479,150.66,150.63,7.3687]
[1718578855834,0.8465479,150.66,150.65,2.456]
[1718578856134,0.8465479,150.66,150.59,15.1932]
[1718578856440,0.8465479,150.66,150.65,24.56]
[1718578859149,0.8465479,150.66,150.65,7.368]
[1718578859334,0.8465479,150.66,150.64,7.3682]
[1718578859523,0.8465479,150.66,150.65,2.456]
[1718578859726,0.8465479,150.66,150.65,24.56]
[1718578862645,0.8465479,150.66,150.65,14.736]
[1718578862860,0.8465479,150.66,150.65,7.368]
[1718578863268,0.8465479,150.66,150.65,24.56]
[1718578868565,0.8465479,150.66,150.65,40.1918]
[1718578869548,0.8465479,150.66,150.65,24.56]
[1718578873273,0.8465479,150.66,150.65,24.73]
[1718578873469,0.8465479,150.66,150.65,26.56716415]
[1718578873848,0.8465479,150.66,150.65,25.24]
[1718578874571,0.8465479,150.66,150.65,24.56]
[1718578879471,29.5976,150.71,150.68,2.4554]
[1718578879472,9.38598098,150.71,150.68,2.4554]
[1718578879670,21.66128098,150.71,150.68,7.3664]
[1718578879879,2.4552,150.7,150.68,2.4554]
[1718578880377,7.3656,150.7,150.67,7.3667]
[1718578880573,24.11618098,150.71,150.58,31.51067073]
[1718578880574,2.4555,150.68,150.58,6.2604]
[1718578880779,7.3681,150.65,150.62,7.3693]
[1718578880982,24.5574,150.67,150.64,2.4561]
[1718578881207,4.9117,150.66,150.59,1.53612657]
[1718578881481,100.17,150.69,150.59,1.53612657]
[1718578881482,5.93,150.63,150.61,4.9131]
[1718578881656,2.4561,150.65,150.62,3.99222061]
[1718578881970,5.93,150.63,150.62,3.99222061]
[1718578882376,5.93,150.63,150.51,278.77]
[1718578882377,22.1089,150.62,150.52,16.5083]
[1718578882549,5.93,150.59,150.58,7.3713]
[1718578882752,5.93,150.59,150.58,2.457]
[1718578883282,5.93,150.59,150.57,7.3717]
[1718578883582,2.4568,150.6,150.57,7.3717]
[1718578883878,7.3705,150.6,150.57,2.4572]
[1718578884178,22.1131,150.59,150.55,22.118]
[1718578884387,7.3711,150.59,150.56,2.4574]
[1718578884566,24.5691,150.6,150.57,2.4573]
[1718578884978,20.0,150.62,150.52,16.5083]
[1718578885177,34.7392,150.62,150.59,2.4569]
[1718578885379,27.3697,150.62,150.59,2.4569]
[1718578885576,2.4567,150.61,150.58,7.3711]
[1718578885780,2.4568,150.6,150.57,24.5723]
[1718578885978,24.567,150.61,150.58,2.4571]
[1718578886211,7.3702,150.61,150.58,2.4571]
[1718578887180,14.7402,150.61,150.58,2.4571]
[1718578887493,14.7401,150.61,150.58,2.4571]
[1718578887694,2.4568,150.6,150.57,24.5723]
[1718578888202,2.4568,150.6,150.57,7.3715]
[1718578888497,7.3701,150.61,150.58,2.4571]
[1718578888697,24.1143,150.63,150.53,0.17]
[1718578888900,2.4567,150.61,150.53,0.51]
[1718578889084,7.37,150.61,150.58,2.457]
[1718578889401,14.7401,150.61,150.58,2.457]
[1718578889602,17.1958,150.62,150.59,2.4569]
[1718578889786,7.3697,150.62,150.59,2.4569]
[1718578889990,2.4565,150.62,150.59,2.4569]
[1718578890188,2.4565,150.62,150.59,7.3708]
[1718578890399,2.4568,150.61,150.58,7.3712]
[1718578890701,7.3701,150.61,150.58,7.3712]
[1718578890882,2.4568,150.61,150.58,7.3712]
[1718578891080,24.5662,150.62,150.59,2.4569]
[1718578891910,2.4566,150.61,150.59,2.4569]
[1718578892096,2.4566,150.61,150.58,24.5711]
[1718578892296,21.658,150.63,150.6,4.9135]
[1718578892500,24.1143,150.63,150.6,2.4567]
[1718578892696,29.027,150.63,150.6,2.4567]
[1718578893211,2.4567,150.61,150.58,7.3711]
[1718578893613,7.37,150.61,150.58,7.3711]
[1718578894291,12.2833,150.61,150.58,2.457]
[1718578894504,14.7401,150.61,150.58,2.457]
[1718578894701,12.2833,150.61,150.57,22.1149]
[1718578894899,14.74,150.61,150.58,2.4571]
[1718578895080,7.37,150.61,150.58,2.4571]
[1718578895904,7.37,150.61,150.58,7.3714]
[1718578896095,7.37,150.61,150.58,2.4571]
[1718578897116,7.37,150.61,150.58,7.3714]
[1718578897513,2.4567,150.61,150.58,7.3714]
[1718578898228,24.5657,150.62,150.59,2.4569]
[1718578899017,7.3698,150.62,150.59,2.4569]
[1718578899398,43.7656,150.63,150.59,4.9138]
[1718578899599,46.2221,150.63,150.6,2.4568]
[1718578899924,2.4565,150.62,150.59,7.3707]
[1718578900228,7.3696,150.62,150.59,2.4568]
[1718578900410,2.4567,150.61,150.58,7.3711]
[1718578900590,2.4567,150.61,150.58,14.7425]
[1718578901095,2.4567,150.61,150.59,2.457]
[1718578902093,24.5654,150.62,150.59,2.457]
[1718578902399,2.4566,150.62,150.59,14.742]
[1718578902719,2.4565,150.62,150.59,24.5697]
[1718578904521,35.96047918,150.63,150.6,2.4567]
[1718578904720,43.32947918,150.63,150.6,2.4567]
[1718578904923,2.4565,150.62,150.59,24.5695]
[1718578905102,50.69847918,150.63,150.6,2.4568]
[1718578905510,5.93,150.61,150.59,24.5695]
[1718578905711,5.93,150.6,150.59,2.4568]
[1718578906306,5.93,150.6,150.58,24.5707]
[1718578906616,22.1103,150.61,150.57,22.1152]
[1718578906800,5.93,150.59,150.58,7.3714]
[1718578907000,5.93,150.59,150.58,2.4571]
[1718578907905,5.93,150.59,150.58,7.3714]
[1718578908107,5.93,150.59,150.58,14.7428]
[1718578908398,24.48287918,150.63,150.53,6.1]
[1718578908600,5.93,150.61,150.6,22.1112]
[1718578908819,5.93,150.61,150.6,24.568]
[1718578908996,5.93,150.61,150.6,2.4568]
[1718578910205,5.93,150.61,150.6,7.3704]
[1718578910607,6.93327918,150.63,150.62,2.4565]
[1718578910920,12.86327918,150.63,150.62,2.4565]
[1718578911116,12.86327918,150.63,150.61,24.5656]
[1718578911432,5.93,150.62,150.61,24.5663]
[1718578911629,5.93,150.62,150.61,7.3696]
[1718578912302,5.93,150.62,150.6,17.1973]
[1718578912303,5.93,150.62,150.6,2.4567]
[1718578912502,5.93,150.61,150.6,22.1111]
[1718578912703,5.93,150.61,150.6,24.5677]
[1718578913899,5.93,150.61,150.6,7.3701]
[1718578914310,5.93,150.61,150.59,24.5691]
[1718578914520,21.67157918,150.63,150.6,2.4568]
[1718578914726,5.93,150.61,150.6,2.4568]
[1718578915434,5.93,150.61,150.59,22.1122]
[1718578915737,2.4565,150.62,150.59,12.2847]
[1718578915936,2.4565,150.62,150.59,14.7415]
[1718578916304,2.4565,150.62,150.6,2.4568]
[1718578916523,31.49717918,150.63,150.6,2.4568]
[1718578917237,14.30247918,150.63,150.6,2.4568]
[1718578917533,14.30247918,150.63,150.6,7.3704]
[1718578917829,14.30247918,150.63,150.6,2.4568]
[1718578918034,14.30247918,150.63,150.6,7.3704]
[1718578918548,9.38967918,150.63,150.6,7.3704]
[1718578918832,9.38967918,150.63,150.6,14.7408]
[1718578919203,6.93327918,150.63,150.61,14.7397]
[1718578919421,5.93,150.62,150.61,7.3698]
[1718578919633,5.93,150.62,150.6,17.1971]
[1718578919634,5.93,150.62,150.6,7.3701]
[1718578920321,5.93,150.62,150.6,14.7405]
[1718578920506,5.93,150.61,150.59,7.3706]
[1718578920819,5.93,150.6,150.59,2.4569]
[1718578921148,5.93,150.6,150.59,2.457]
[1718578921433,2.4566,150.62,150.59,14.7419]
[1718578921608,5.93,150.6,150.59,7.371]
[1718578921807,5.93,150.6,150.59,2.457]
[1718578922329,5.93,150.6,150.59,7.371]
[1718578922924,5.93,150.6,150.58,2.4571]
[1718578923135,24.5671,150.61,150.58,2.4571]
[1718578923136,5.93,150.59,150.58,7.3713]
[1718578923326,5.93,150.59,150.58,24.5713]
[1718578923642,5.93,150.59,150.57,7.3718]
[1718578923838,5.93,150.59,150.58,2.4571]
[1718578924518,5.93,150.59,150.58,14.7428]
[1718578924714,5.93,150.59,150.58,24.5714]
[1718578925446,5.93,150.59,150.58,7.3714]
[1718578926345,7.3698,150.62,150.59,2.4569]
[1718578926550,5.93,150.6,150.59,2.4569]
[1718578926726,5.93,150.6,150.58,24.5711]
[1718578926916,5.93,150.59,150.58,24.5711]
[1718578927524,5.93,150.59,150.58,2.457]
[1718578927939,5.93,150.59,150.57,22.1154]
[1718578928135,5.93,150.59,150.58,2.4571]
[1718578928341,20.0,150.61,150.59,7.3708]
[1718578928543,2.456,150.65,150.62,7.3692]
[1718578928744,2.456,150.65,150.61,7.3697]
[1718578928745,5.93,150.63,150.61,7.3697]
[1718578928916,5.93,150.63,150.61,2.4565]
[1718578928917,5.93,150.62,150.61,2.4565]
[1718578929520,7.3685,150.64,150.61,2.4565]
[1718578929729,5.93,150.62,150.61,2.4565]
[1718578930119,51.64252943,150.67,150.57,5.93]
[1718578930318,51.64252943,150.67,150.56,6.5965]
[1718578930319,20.0,150.66,150.64,2.4561]
[1718578930546,18.2988,150.67,150.65,2.456]
[1718578930734,5.93,150.66,150.64,7.3682]
[1718578930934,18.2988,150.67,150.64,7.3682]
[1718578930935,5.93,150.65,150.64,7.3682]
[1718578931328,5.93,150.65,150.64,2.456]
[1718578931520,5.93,150.65,150.63,22.106]
[1718578931744,5.93,150.65,150.64,2.4561]
[1718578933157,5.93,150.65,150.63,24.5622]
[1718578933644,23.2102,150.67,150.64,2.4561]
[1718578933850,5.93,150.65,150.64,2.4561]
[1718578934049,12.27693328,150.69,150.64,7.3685]
[1718578934257,6.93223452,150.69,150.67,2.4555]
[1718578934425,6.93223452,150.69,150.59,0.17]
[1718578934426,5.93,150.68,150.66,22.1018]
[1718578934622,2.4552,150.7,150.67,7.3668]
[1718578934844,5.93,150.68,150.67,2.4555]
[1718578935238,25.2217,150.71,150.67,17.1895]
[1718578935445,37.497,150.71,150.68,2.4554]
[1718578935724,5.93,150.69,150.68,2.4554]
[1718578936146,2.4552,150.7,150.67,24.5562]
[1718578936449,28.6387,150.71,150.67,24.5562]
[1718578936450,5.93,150.68,150.67,24.5563]
[1718578936826,5.93,150.68,150.64,7.3683]
[1718578937043,5.93,150.66,150.63,7.3688]
[1718578937245,6.1011,150.69,150.61,7.3699]
[1718578937424,5.93,150.63,150.61,2.4566]
[1718578937921,5.93,150.63,150.61,7.3699]
[1718578938575,5.93,150.63,150.62,2.4565]
[1718578938727,5.93,150.63,150.61,7.3698]
[1718578939028,5.93,150.63,150.61,14.7398]
[1718578939226,22.1043,150.65,150.58,15.3538]
[1718578939227,2.4559,150.66,150.63,2.4562]
[1718578939449,5.93,150.64,150.63,2.4562]
[1718578939651,5.93,150.64,150.63,14.7378]
[1718578939847,5.93,150.64,150.63,24.5631]
[1718578940043,2.4557,150.67,150.64,7.3684]
[1718578940247,5.93,150.65,150.64,2.4561]
[1718578940445,5.93,150.65,150.63,24.5629]
[1718578940655,5.93,150.65,150.63,7.3686]
[1718578940856,2.4558,150.66,150.63,14.7376]
[1718578941031,24.5561,150.68,150.64,14.7368]
[1718578941358,5.93,150.66,150.64,14.7368]
[1718578941724,5.93,150.66,150.64,7.3683]
[1718578942237,5.93,150.66,150.64,2.456]
[1718578942542,5.93,150.65,150.63,24.5627]
[1718578943274,5.93,150.65,150.64,2.4561]
[1718578943766,7.3672,150.67,150.64,2.4561]
[1718578943945,5.93,150.65,150.64,2.4561]
[1718578944259,5.93,150.65,150.64,14.7369]
[1718578944965,5.93,150.65,150.64,2.4561]
[1718578945370,5.93,150.65,150.6,5.93]
[1718578945371,26.88390109,150.63,150.62,2.4565]
[1718578945549,26.88390109,150.63,150.62,14.739]
[1718578945746,26.88390109,150.63,150.62,24.565]
[1718578949673,26.88390109,150.63,150.62,30.495]
[1718578951076,26.88390109,150.63,150.62,37.0735]
[1718578951283,26.88390109,150.63,150.62,37.2435]
[1718578952381,26.88390109,150.63,150.62,24.565]
[1718578964683,26.88390109,150.63,150.62,31.005]
[1718578964883,26.88390109,150.63,150.62,31.175]
[1718578965089,26.88390109,150.63,150.62,30.665]
[1718578965286,26.88390109,150.63,150.62,30.495]
[1718578966894,26.88390109,150.63,150.62,24.565]
[1718578967483,26.88390109,150.63,150.61,17.196]
[1718578967681,26.88390109,150.63,150.62,24.565]
[1718578988007,26.88390109,150.63,150.62,30.495]
[1718578989285,26.88390109,150.63,150.62,24.565]
[1718578993990,26.88390109,150.63,150.62,30.495]
[1718578996423,26.88390109,150.63,150.62,24.565]
[1718578997495,26.88390109,150.63,150.62,7.3695]
[1718578997715,26.88390109,150.63,150.62,24.565]
[1718578998048,26.88390109,150.63,150.62,24.735]
[1718578998340,26.88390109,150.63,150.62,30.665]
[1718578998916,26.88390109,150.63,150.62,31.005]
[1718578999111,26.88390109,150.63,150.62,31.175]
[1718579001531,26.88390109,150.63,150.62,52.50246841]
[1718579001919,26.88390109,150.63,150.62,51.175]
[1718579002120,26.88390109,150.63,150.62,45.245]
[1718579002309,26.88390109,150.63,150.62,24.565]
[1718579002715,26.88390109,150.63,150.62,30.495]
[1718579003645,26.88390109,150.63,150.62,30.665]
[1718579003814,26.88390109,150.63,150.62,31.175]
[1718579008330,26.88390109,150.63,150.62,31.005]
[1718579008520,26.88390109,150.63,150.62,31.175]
[1718579013222,26.88390109,150.63,150.62,24.565]
[1718579013420,26.88390109,150.63,150.62,30.495]
[1718579014531,26.88390109,150.63,150.62,31.005]
[1718579014737,26.88390109,150.63,150.62,31.175]
[1718579016034,13.37159889,150.63,150.62,51.115]
[1718579017036,7.09659889,150.63,150.62,71.115]
[1718579018617,9.889e-05,150.63,150.62,71.115]
[1718579027424,9.889e-05,150.63,150.62,51.175]
[1718579027621,9.889e-05,150.63,150.62,71.115]
[1718579027823,9.889e-05,150.63,150.62,51.175]
[1718579029624,9.889e-05,150.63,150.62,71.115]
[1718579030654,9.889e-05,150.63,150.62,30.495]
[1718579031937,9.889e-05,150.63,150.62,30.835]
[1718579032245,9.889e-05,150.63,150.62,31.175]
[1718579037035,9.889e-05,150.63,150.62,24.565]
[1718579037241,9.889e-05,150.63,150.62,30.495]
[1718579038126,9.889e-05,150.63,150.62,24.565]
[1718579038449,9.889e-05,150.63,150.62,31.175]
[1718579041631,9.889e-05,150.63,150.62,24.565]
[1718579042458,9.889e-05,150.63,150.62,30.495]
[1718579042959,9.889e-05,150.63,150.62,31.175]
[1718579044062,9.889e-05,150.63,150.62,25.245]
[1718579044278,9.889e-05,150.63,150.62,31.175]
[1718579044432,9.889e-05,150.63,150.62,25.245]
[1718579044631,9.889e-05,150.63,150.62,31.175]
[1718579045771,9.889e-05,150.63,150.62,25.245]
[1718579045935,9.889e-05,150.63,150.62,31.175]
[1718579046463,9.889e-05,150.63,150.62,32.50224768]
[1718579047858,9.889e-05,150.63,150.62,31.175]
[1718579048247,9.889e-05,150.63,150.62,25.245]
[1718579048463,9.889e-05,150.63,150.62,31.175]
[1718579049641,9.889e-05,150.63,150.62,25.245]
[1718579049857,9.889e-05,150.63,150.62,31.175]
[1718579052253,9.889e-05,150.63,150.62,24.565]
[1718579052572,9.889e-05,150.63,150.62,30.495]
[1718579053462,9.889e-05,150.63,150.62,30.835]
[1718579053664,9.889e-05,150.63,150.62,31.175]
[1718579053895,9.889e-05,150.63,150.62,32.50237104]
[1718579054164,15.9175,150.68,150.67,24.5566]
[1718579055670,21.8475,150.68,150.67,2.4556]
[1718579056244,21.8475,150.68,150.66,24.5575]
[1718579056444,21.8475,150.68,150.67,2.4556]
[1718579056669,21.8475,150.68,150.67,7.3669]
[1718579056839,15.9175,150.68,150.67,24.5566]
[1718579058468,15.9175,150.68,150.67,7.3669]
[1718579058678,15.9175,150.68,150.67,24.5566]
[1718579060383,15.9175,150.68,150.67,7.3669]
[1718579061280,15.9175,150.68,150.67,24.5566]
[1718579062665,15.9175,150.68,150.67,17.1896]
[1718579062857,15.9175,150.68,150.67,7.3669]
[1718579063367,15.9175,150.68,150.67,2.4556]
[1718579064364,15.9175,150.68,150.67,7.3669]
[1718579066183,15.9175,150.68,150.67,2.4556]
[1718579067464,15.9175,150.68,150.67,14.7339]
[1718579067668,15.9175,150.68,150.67,7.3669]
[1718579068464,15.9175,150.68,150.67,24.5566]
[1718579068962,6.266,150.69,150.65,5.93]
[1718579068963,6.266,150.69,150.68,24.5552]
[1718579069592,16.5014,150.72,150.69,7.3661]
[1718579069763,16.5014,150.72,150.66,1.32724359]
[1718579069764,5.93,150.71,150.7,24.5516]
[1718579070170,5.93,150.71,150.69,4.9105]
[1718579070372,5.93,150.7,150.69,2.4553]
[1718579072464,8.3852,150.7,150.68,2.4554]
[1718579072671,5.93,150.69,150.68,2.4554]
[1718579074484,5.93,150.69,150.68,24.5552]
[1718579074786,5.93,150.7,150.68,24.5541]
[1718579074999,5.93,150.69,150.68,2.4554]
[1718579077397,5.93,150.69,150.67,24.5558]
[1718579077786,5.93,150.69,150.68,2.4555]
[1718579078998,5.93,150.69,150.67,14.7336]
[1718579079909,5.93,150.69,150.68,2.4555]
[1718579080285,8.3854,150.69,150.66,7.3673]
[1718579080488,5.93,150.67,150.66,14.7349]
[1718579080699,5.93,150.68,150.66,7.3674]
[1718579081409,5.93,150.68,150.66,14.7349]
[1718579081599,8.3855,150.68,150.66,2.4557]
[1718579081788,5.93,150.68,150.66,7.3673]
[1718579082708,8.3855,150.68,150.66,2.4557]
[1718579083107,5.93,150.68,150.66,7.3674]
[1718579083408,5.93,150.68,150.65,17.1913]
[1718579083409,13.2966,150.68,150.65,7.3677]
[1718579083710,5.93,150.67,150.66,2.4558]
[1718579084079,8.3855,150.68,150.66,2.4558]
[1718579084286,8.3857,150.67,150.64,12.2807]
[1718579084502,17.1891,150.68,150.65,2.4559]
[1718579084503,5.93,150.66,150.65,2.4559]
[1718579084691,8.3858,150.66,150.64,2.4561]
[1718579084897,5.93,150.65,150.64,7.3684]
[1718579085081,5.93,150.65,150.64,14.7369]
[1718579085403,21.4865,150.66,150.65,24.56]
[1718579085607,15.8862,150.7,150.57,36.3394]
[1718579085794,5.93,150.69,150.68,2.4554]
[1718579086293,5.93,150.69,150.67,22.1001]
[1718579086475,18.3414,150.7,150.68,2.4555]
[1718579086674,5.93,150.69,150.67,24.5556]
[1718579086878,5.93,150.68,150.67,24.5556]
[1718579087105,23.2518,150.7,150.67,24.5556]
[1718579087591,23.2518,150.7,150.67,7.3666]
[1718579088184,2.4553,150.69,150.67,2.4555]
[1718579088806,40.4384,150.7,150.67,2.4555]
[1718579089002,7.3661,150.69,150.66,7.3672]
[1718579089196,5.93,150.67,150.65,7.3678]
[1718579089390,2.4556,150.68,150.66,2.4558]
[1718579089713,5.93,150.67,150.66,2.4558]
[1718579090084,5.93,150.67,150.66,7.3675]
[1718579090383,2.4555,150.69,150.66,22.1024]
[1718579090712,2.4555,150.69,150.66,17.1907]
[1718579090713,5.93,150.68,150.66,17.1907]
[1718579090910,5.93,150.68,150.67,2.4556]
[1718579091996,5.93,150.68,150.67,7.3669]
[1718579092200,5.93,150.68,150.67,2.4556]
[1718579092597,5.93,150.68,150.66,7.3671]
[1718579093529,5.93,150.68,150.66,14.7346]
[1718579093998,5.93,150.68,150.66,7.3671]
[1718579094712,5.93,150.68,150.66,14.7346]
[1718579096510,5.93,150.68,150.67,2.4556]
[1718579097991,15.8862,150.7,150.67,24.5566]
[1718579098191,15.8862,150.7,150.69,7.366]
[1718579098394,21.8162,150.7,150.68,7.3662]
[1718579098711,21.8162,150.7,150.68,24.5549]
[1718579098712,5.93,150.69,150.68,24.5549]
[1718579098894,5.93,150.69,150.68,2.4553]
[1718579099215,15.8862,150.7,150.64,5.93]
[1718579099414,5.93,150.69,150.67,7.3668]
[1718579099590,23.2518,150.7,150.67,7.3668]
[1718579099591,15.8862,150.7,150.68,2.4555]
[1718579099796,5.93,150.69,150.68,2.4555]
[1718579100500,18.2069,150.69,150.66,2.4558]
[1718579100707,5.93,150.67,150.66,2.4558]
[1718579100929,5.93,150.68,150.66,7.3675]
[1718579102994,8.3855,150.68,150.65,24.5593]
[1718579103191,2.4562,150.64,150.61,22.1097]
[1718579103427,5.93,150.64,150.62,7.3694]
[1718579103634,5.93,150.64,150.63,7.3689]
[1718579103937,0.17,150.69,150.57,22.8118]
[1718579103938,2.4555,150.68,150.66,2.4558]
[1718579104298,5.93,150.67,150.66,2.4558]
[1718579104714,8.3855,150.68,150.66,2.4558]
[1718579105125,13.2966,150.68,150.65,7.3677]
[1718579105311,5.93,150.67,150.65,7.3677]
[1718579106630,5.93,150.67,150.65,2.4559]
[1718579106797,5.93,150.67,150.65,7.3679]
[1718579106997,5.93,150.66,150.65,2.4559]
[1718579107517,5.93,150.66,150.65,2.456]
[1718579108818,5.93,150.66,150.64,7.3682]
[1718579109027,5.93,150.66,150.64,7.3683]
[1718579109322,5.93,150.66,150.64,14.7368]
[1718579109504,5.93,150.66,150.65,7.368]
[1718579110099,5.93,150.66,150.65,2.456]
[1718579110313,5.93,150.66,150.65,7.368]
[1718579110640,5.93,150.66,150.65,2.456]
[1718579111115,2.4557,150.67,150.65,2.456]
[1718579111449,5.93,150.66,150.64,24.5613]
[1718579111626,5.93,150.66,150.65,2.456]
[1718579112917,5.93,150.66,150.65,24.56]
[1718579113120,6.93229813,150.71,150.62,15.6478]
[1718579113326,2.455,150.71,150.68,4.9109]
[1718579113617,44.62931354,150.74,150.71,2.455]
[1718579113822,2.4547,150.73,150.71,2.455]
[1718579114032,5.93,150.72,150.71,2.455]
[1718579114240,7.3641,150.73,150.7,24.5513]
[1718579114422,5.93,150.71,150.7,24.5513]
[1718579114837,7.3641,150.73,150.71,2.455]
[1718579115027,5.93,150.72,150.71,2.455]
[1718579115523,6.0561,150.76,150.71,7.3651]
[1718579115724,6.0561,150.76,150.74,2.4545]
[1718579115725,8.3842,150.76,150.74,2.4545]
[1718579115930,12.2704,150.77,150.74,2.4545]
[1718579115931,24.5408,150.77,150.74,2.4545]
[1718579116133,8.3842,150.76,150.74,2.4545]
[1718579116338,8.3842,150.76,150.73,24.5466]
[1718579116646,2.4541,150.77,150.74,7.3635]
[1718579116859,5.93,150.77,150.75,9.8174]
[1718579117020,2.454,150.78,150.75,22.089]
[1718579117336,17.1766,150.79,150.76,7.3626]
[1718579117521,8.3839,150.78,150.76,2.4542]
[1718579118530,13.2917,150.78,150.75,7.3628]
[1718579119937,2.454,150.77,150.75,7.3628]
[1718579120136,2.454,150.77,150.75,2.4543]
[1718579120760,24.5443,150.75,150.72,2.4548]
[1718579120927,8.3845,150.74,150.72,2.4548]
[1718579121425,2.4547,150.73,150.7,12.2754]
[1718579121638,30.4793,150.72,150.69,2.4552]
[1718579121830,8.3851,150.71,150.69,2.4552]
[1718579122037,16.2806,150.76,150.64,16.3652]
[1718579122235,22.0929,150.73,150.7,2.4552]
[1718579122430,8.385,150.71,150.69,2.4553]
[1718579122632,13.2956,150.7,150.67,22.1006]
[1718579122831,5.93,150.69,150.68,2.4555]
[1718579124059,5.93,150.7,150.69,2.4553]
[1718579124231,5.93,150.7,150.68,22.0994]
[1718579124550,5.93,150.7,150.69,24.5535]
[1718579124756,5.93,150.72,150.71,2.4549]
[1718579124961,5.93,150.73,150.72,7.3645]
[1718579125128,8.3847,150.73,150.7,7.3652]
[1718579125329,5.93,150.71,150.69,7.3658]
[1718579125543,13.2952,150.71,150.68,7.3662]
[1718579125750,4.9098,150.72,150.69,7.3658]
[1718579125955,5.93,150.71,150.7,2.4551]
[1718579126173,7.3656,150.7,150.66,7.3675]
[1718579126333,2.4552,150.7,150.68,2.4555]
[1718579126533,5.93,150.71,150.69,2.4553]
[1718579126733,8.385,150.71,150.69,2.4553]
[1718579127425,5.93,150.71,150.69,7.3659]
[1718579127632,5.93,150.71,150.69,14.732]
[1718579127940,16.2806,150.76,150.73,7.3641]
[1718579127941,5.93,150.74,150.73,7.3641]
[1718579128143,5.93,150.74,150.73,2.4547]
[1718579129236,13.2932,150.75,150.72,24.5481]
[1718579129439,13.2932,150.75,150.72,14.7287]
[1718579129851,36.9364,150.76,150.73,2.4546]
[1718579130059,36.9364,150.76,150.72,24.5478]
[1718579130060,7.3631,150.75,150.72,24.5478]
[1718579130251,8.3844,150.75,150.73,2.4547]
[1718579130868,13.2932,150.75,150.72,24.5478]
[1718579131359,13.2929,150.76,150.73,14.728]
[1718579132063,20.6556,150.76,150.73,7.3639]
[1718579132637,7.3624,150.77,150.74,4.909]
[1718579132842,13.292,150.78,150.75,14.7261]
[1718579133045,2.454,150.77,150.75,2.4543]
[1718579133243,30.4694,150.78,150.75,7.363]